[Event "*** Titled Tuesday Blitz"]
[Site "Chess.com"]
[Date "2018.08.07"]
[Round "7"]
[White "ElHelvetico"]
[Black "Haykos"]
[Result "1-0"]
[WhiteElo "2678"]
[BlackElo "2531"]
[TimeControl "180+2"]
[EndTime "14:36:00 PDT"]
[Termination "ElHelvetico won by resignation"]

1. e4 {[%clk 0:03:01.9]} 1... c5 {[%clk 0:03:00.9]} 2. Nf3 {[%clk 0:03:03]} 2...
e6 {[%clk 0:03:02.1]} 3. d4 {[%clk 0:03:03.6]} 3... cxd4 {[%clk 0:03:04]} 4.
Nxd4 {[%clk 0:03:05.2]} 4... Nf6 {[%clk 0:03:05.7]} 5. Nc3 {[%clk 0:03:06]} 5...
Nc6 {[%clk 0:03:07.4]} 6. Ndb5 {[%clk 0:03:01.5]} 6... Bb4 {[%clk 0:03:07.8]} 7.
a3 {[%clk 0:03:01.3]} 7... Bxc3+ {[%clk 0:03:08.3]} 8. Nxc3 {[%clk 0:03:03.2]}
8... d5 {[%clk 0:03:08.8]} 9. exd5 {[%clk 0:03:03.9]} 9... Nxd5 {[%clk
0:02:44.7]} 10. Nxd5 {[%clk 0:02:57.2]} 10... exd5 {[%clk 0:02:44.4]} 11. Bd3
{[%clk 0:02:58]} 11... Qe7+ {[%clk 0:02:44.1]} 12. Qe2 {[%clk 0:02:58.6]} 12...
Qxe2+ {[%clk 0:02:45.3]} 13. Bxe2 {[%clk 0:02:59]} 13... Bf5 {[%clk 0:02:46.8]}
14. c3 {[%clk 0:02:55.9]} 14... O-O-O {[%clk 0:02:45.6]} 15. O-O {[%clk
0:02:48.6]} 15... Rhe8 {[%clk 0:02:42.9]} 16. Bf3 {[%clk 0:02:46.7]} 16... Be4
{[%clk 0:02:44.1]} 17. Bxe4 {[%clk 0:02:43.5]} 17... dxe4 {[%clk 0:02:46]} 18.
Be3 {[%clk 0:02:42.6]} 18... b6 {[%clk 0:02:45.2]} 19. Rfd1 {[%clk 0:02:40.8]}
19... Na5 {[%clk 0:02:32]} 20. Rxd8+ {[%clk 0:01:39.2]} 20... Rxd8 {[%clk
0:02:32.7]} 21. Re1 {[%clk 0:01:40.5]} 21... Nc4 {[%clk 0:01:47.8]} 22. Bd4
{[%clk 0:01:37.8]} 22... f5 {[%clk 0:01:48.5]} 23. Re2 {[%clk 0:01:33.2]} 23...
Rd7 {[%clk 0:01:45.4]} 24. a4 {[%clk 0:01:27.5]} 24... Kb7 {[%clk 0:01:28.4]}
25. f3 {[%clk 0:01:12.7]} 25... Re7 {[%clk 0:00:38.3]} 26. Kf2 {[%clk
0:01:05.7]} 26... Kc6 {[%clk 0:00:38.6]} 27. fxe4 {[%clk 0:00:52.4]} 27... fxe4
{[%clk 0:00:39.5]} 28. b3 {[%clk 0:00:51]} 28... Na5 {[%clk 0:00:37.2]} 29. Rb2
{[%clk 0:00:48]} 29... a6 {[%clk 0:00:13.6]} 30. Ke3 {[%clk 0:00:39.6]} 30... b5
{[%clk 0:00:12.4]} 31. axb5+ {[%clk 0:00:41.5]} 31... axb5 {[%clk 0:00:14.2]}
32. g4 {[%clk 0:00:34.9]} 32... g6 {[%clk 0:00:15.5]} 33. g5 {[%clk 0:00:33.1]}
33... Kd5 {[%clk 0:00:16.5]} 34. Rb1 {[%clk 0:00:26.8]} 34... Rf7 {[%clk
0:00:17.6]} 35. Bf6 {[%clk 0:00:28]} 35... Rf8 {[%clk 0:00:15]} 36. Rd1+ {[%clk
0:00:26.7]} 36... Ke6 {[%clk 0:00:16.3]} 37. b4 {[%clk 0:00:22.8]} 37... Nc4+
{[%clk 0:00:17]} 38. Kxe4 {[%clk 0:00:24.1]} 38... h6 {[%clk 0:00:18.5]} 39. h4
{[%clk 0:00:22.6]} 39... hxg5 {[%clk 0:00:19.7]} 40. hxg5 {[%clk 0:00:24.3]}
40... Ra8 {[%clk 0:00:20.5]} 41. Rd5 {[%clk 0:00:18.8]} 41... Ra2 {[%clk
0:00:19.6]} 42. Rc5 {[%clk 0:00:16.1]} 42... Rg2 {[%clk 0:00:17.6]} 43. Kf3
{[%clk 0:00:13.6]} 43... Rc2 {[%clk 0:00:18]} 44. Rxb5 {[%clk 0:00:14.1]} 44...
Nd6 {[%clk 0:00:17.2]} 45. Rb6 {[%clk 0:00:14.6]} 45... Kd5 {[%clk 0:00:18.3]}
46. Rb8 {[%clk 0:00:10.7]} 46... Ke6 {[%clk 0:00:16.2]} 47. Rd8 {[%clk 0:00:10]}
47... Nb5 {[%clk 0:00:16.2]} 48. Re8+ {[%clk 0:00:09.8]} 48... Kd5 {[%clk
0:00:16.2]} 49. Re5+ {[%clk 0:00:10.9]} 49... Kc6 {[%clk 0:00:17.6]} 50. Rc5+
{[%clk 0:00:12.4]} 50... Kb6 {[%clk 0:00:19.2]} 51. Ke4 {[%clk 0:00:13]} 51...
Nd6+ {[%clk 0:00:18.3]} 52. Kd5 {[%clk 0:00:12.4]} 52... Rd2+ {[%clk 0:00:19.2]}
53. Ke6 {[%clk 0:00:13.1]} 53... Nb7 {[%clk 0:00:20.2]} 54. Rd5 {[%clk
0:00:12.3]} 54... Re2+ {[%clk 0:00:20.3]} 55. Kf7 {[%clk 0:00:12.9]} 55... Kc6
{[%clk 0:00:21.7]} 56. Rd3 {[%clk 0:00:11.6]} 56... Nd6+ {[%clk 0:00:22]} 57.
Kxg6 {[%clk 0:00:13]} 57... Ne4 {[%clk 0:00:23.5]} 58. Rf3 {[%clk 0:00:12.4]}
58... Kd5 {[%clk 0:00:22.8]} 59. Kf7 {[%clk 0:00:11.2]} 59... Nd6+ {[%clk
0:00:23.1]} 60. Kg7 {[%clk 0:00:11.6]} 60... Ke6 {[%clk 0:00:22.6]} 61. Bd4
{[%clk 0:00:07.6]} 61... Rg2 {[%clk 0:00:22]} 62. g6 {[%clk 0:00:06.8]} 62...
Nf5+ {[%clk 0:00:23.2]} 63. Kh7 {[%clk 0:00:07.4]} 63... Rh2+ {[%clk 0:00:24.1]}
64. Kg8 {[%clk 0:00:08.4]} 64... Ne7+ {[%clk 0:00:25.5]} 65. Kg7 {[%clk
0:00:08.5]} 65... Nf5+ {[%clk 0:00:26.9]} 66. Rxf5 {[%clk 0:00:09.8]} 66... Kxf5
{[%clk 0:00:28]} 67. Kf7 {[%clk 0:00:11.4]} 1-0

[Event "*** Titled Tuesday Blitz"]
[Site "Chess.com"]
[Date "2018.08.07"]
[Round "7"]
[White "Arystanner23"]
[Black "evgenysharapov"]
[Result "0-1"]
[WhiteElo "2565"]
[BlackElo "2367"]
[TimeControl "180+2"]
[EndTime "14:36:16 PDT"]
[Termination "evgenysharapov won by resignation"]

1. e4 {[%clk 0:03:01.9]} 1... c5 {[%clk 0:02:59.5]} 2. Nf3 {[%clk 0:03:03.1]}
2... d6 {[%clk 0:02:59.9]} 3. d4 {[%clk 0:03:04.4]} 3... cxd4 {[%clk 0:03:00.5]}
4. Qxd4 {[%clk 0:03:06.3]} 4... Bd7 {[%clk 0:03:00.2]} 5. c4 {[%clk 0:03:00.6]}
5... Nc6 {[%clk 0:03:00.4]} 6. Qd2 {[%clk 0:03:00.6]} 6... Nf6 {[%clk
0:03:00.8]} 7. Nc3 {[%clk 0:03:00.5]} 7... Bg4 {[%clk 0:03:01]} 8. Nd4 {[%clk
0:03:00.6]} 8... Nxd4 {[%clk 0:02:55]} 9. Qxd4 {[%clk 0:03:02.5]} 9... g6 {[%clk
0:02:55.1]} 10. Be2 {[%clk 0:03:03.3]} 10... Bxe2 {[%clk 0:02:55]} 11. Nxe2
{[%clk 0:03:04]} 11... Bg7 {[%clk 0:02:55.3]} 12. O-O {[%clk 0:03:04.2]} 12...
O-O {[%clk 0:02:55.3]} 13. Qd3 {[%clk 0:03:05.1]} 13... Nd7 {[%clk 0:02:52.6]}
14. Nc3 {[%clk 0:03:02.4]} 14... Rc8 {[%clk 0:02:49.4]} 15. b3 {[%clk
0:02:37.1]} 15... b5 {[%clk 0:02:47.9]} 16. Bg5 {[%clk 0:02:22.6]} 16... bxc4
{[%clk 0:02:47.3]} 17. bxc4 {[%clk 0:02:23.7]} 17... Ne5 {[%clk 0:02:47.4]} 18.
Qe2 {[%clk 0:02:23.7]} 18... h6 {[%clk 0:02:47.1]} 19. Bd2 {[%clk 0:02:09.1]}
19... Nxc4 {[%clk 0:02:46]} 20. Rac1 {[%clk 0:02:01.4]} 20... Nxd2 {[%clk
0:02:46.1]} 21. Qxd2 {[%clk 0:02:03.3]} 21... Qa5 {[%clk 0:02:43]} 22. Nb1
{[%clk 0:02:04.1]} 22... Qxd2 {[%clk 0:02:40.5]} 23. Nxd2 {[%clk 0:02:06]} 23...
Rxc1 {[%clk 0:02:33.7]} 24. Rxc1 {[%clk 0:02:05.6]} 24... Rb8 {[%clk 0:02:33.5]}
25. Nb3 {[%clk 0:01:58.8]} 25... Rb4 {[%clk 0:02:23.8]} 26. f3 {[%clk 0:01:59]}
26... Ra4 {[%clk 0:02:24.1]} 27. Rc2 {[%clk 0:01:59.4]} 27... e6 {[%clk
0:02:24]} 28. Rd2 {[%clk 0:01:58.3]} 28... d5 {[%clk 0:02:23.1]} 29. exd5 {[%clk
0:01:58.6]} 29... exd5 {[%clk 0:02:23.7]} 30. Kf2 {[%clk 0:01:50.5]} 30... d4
{[%clk 0:02:20.5]} 31. Ke2 {[%clk 0:01:50.7]} 31... Kf8 {[%clk 0:02:21]} 32. Kd3
{[%clk 0:01:51.7]} 32... Ke7 {[%clk 0:02:21.7]} 33. Ke4 {[%clk 0:01:52.9]} 33...
f5+ {[%clk 0:02:18.5]} 34. Kd5 {[%clk 0:01:53.5]} 34... h5 {[%clk 0:02:05.3]}
35. Nc5 {[%clk 0:01:46.2]} 35... Ra3 {[%clk 0:01:59.4]} 36. Rb2 {[%clk
0:01:44.8]} 36... d3 {[%clk 0:01:38.1]} 37. Rd2 {[%clk 0:01:18.5]} 37... Bh6
{[%clk 0:01:38.2]} 38. Rxd3 {[%clk 0:01:16.1]} 38... Rxa2 {[%clk 0:01:37.9]} 39.
Rb3 {[%clk 0:01:03.9]} 39... Rxg2 {[%clk 0:01:26.9]} 40. h4 {[%clk 0:00:52.2]}
40... Rd2+ {[%clk 0:01:24.9]} 41. Kc4 {[%clk 0:00:49.6]} 41... a5 {[%clk
0:00:59.9]} 42. Rb7+ {[%clk 0:00:48.2]} 42... Kd8 {[%clk 0:00:48.5]} 43. Ne6+
{[%clk 0:00:42.4]} 43... Kc8 {[%clk 0:00:47.2]} 44. Rc7+ {[%clk 0:00:38.3]}
44... Kb8 {[%clk 0:00:47.2]} 45. Rh7 {[%clk 0:00:39.9]} 45... Be3 {[%clk
0:00:42.3]} 46. Kb5 {[%clk 0:00:38.1]} 46... Rd6 {[%clk 0:00:34.5]} 47. Re7
{[%clk 0:00:31]} 47... Bf2 {[%clk 0:00:28.7]} 48. f4 {[%clk 0:00:23.1]} 48...
Bxh4 {[%clk 0:00:28.4]} 49. Re8+ {[%clk 0:00:21.8]} 49... Kb7 {[%clk 0:00:29.1]}
50. Nc5+ {[%clk 0:00:23]} 50... Kc7 {[%clk 0:00:28.7]} 51. Rg8 {[%clk
0:00:20.4]} 51... Bf2 {[%clk 0:00:24.8]} 52. Rg7+ {[%clk 0:00:20.3]} 52... Kc8
{[%clk 0:00:23.4]} 53. Rg8+ {[%clk 0:00:16.9]} 53... Rd8 {[%clk 0:00:22.9]} 54.
Rxg6 {[%clk 0:00:17.9]} 54... Bxc5 {[%clk 0:00:20.6]} 55. Kxc5 {[%clk
0:00:19.3]} 55... Rh8 {[%clk 0:00:20.9]} 56. Rg3 {[%clk 0:00:20.1]} 56... h4
{[%clk 0:00:21.4]} 57. Rh3 {[%clk 0:00:20.3]} 57... Kd7 {[%clk 0:00:22.5]} 58.
Kb5 {[%clk 0:00:21.2]} 58... Kd6 {[%clk 0:00:23.5]} 59. Rd3+ {[%clk 0:00:21.8]}
59... Ke6 {[%clk 0:00:24.4]} 60. Rh3 {[%clk 0:00:21.1]} 60... Kd5 {[%clk
0:00:24.5]} 61. Kxa5 {[%clk 0:00:18.3]} 61... Ke4 {[%clk 0:00:25.3]} 62. Kb4
{[%clk 0:00:20.2]} 62... Kxf4 {[%clk 0:00:26.3]} 63. Kc3 {[%clk 0:00:20.6]}
63... Kg4 {[%clk 0:00:27.4]} 64. Rh1 {[%clk 0:00:22.2]} 64... h3 {[%clk
0:00:28.7]} 65. Kd3 {[%clk 0:00:23.6]} 65... h2 {[%clk 0:00:29.4]} 66. Ke3
{[%clk 0:00:24.8]} 66... Kg3 {[%clk 0:00:30.3]} 67. Ke2 {[%clk 0:00:26.2]} 67...
Kg2 {[%clk 0:00:31.2]} 68. Rc1 {[%clk 0:00:27.3]} 68... h1=Q {[%clk 0:00:31.7]}
69. Re1 {[%clk 0:00:28.9]} 69... Qxe1+ {[%clk 0:00:31.5]} 70. Kxe1 {[%clk
0:00:30.1]} 0-1

[Event "*** Titled Tuesday Blitz"]
[Site "Chess.com"]
[Date "2018.08.07"]
[Round "7"]
[White "saraswathii"]
[Black "gmjlh"]
[Result "0-1"]
[WhiteElo "2293"]
[BlackElo "2722"]
[TimeControl "180+2"]
[EndTime "14:37:54 PDT"]
[Termination "gmjlh won by checkmate"]

1. e4 {[%clk 0:02:54.4]} 1... c6 {[%clk 0:03:00.9]} 2. d3 {[%clk 0:02:52.9]}
2... d5 {[%clk 0:03:02.8]} 3. Nd2 {[%clk 0:02:53.8]} 3... e5 {[%clk 0:03:02.7]}
4. Ngf3 {[%clk 0:02:34.1]} 4... Bd6 {[%clk 0:03:03.1]} 5. g3 {[%clk 0:02:34.4]}
5... Nf6 {[%clk 0:03:01.8]} 6. Bg2 {[%clk 0:02:34.9]} 6... O-O {[%clk
0:03:02.9]} 7. O-O {[%clk 0:02:35.5]} 7... a5 {[%clk 0:03:02.2]} 8. Qe2 {[%clk
0:02:36]} 8... Re8 {[%clk 0:03:02.1]} 9. h3 {[%clk 0:02:34.9]} 9... a4 {[%clk
0:03:02.8]} 10. a3 {[%clk 0:02:35.5]} 10... Nbd7 {[%clk 0:03:02.1]} 11. Nh4
{[%clk 0:02:36.4]} 11... Bf8 {[%clk 0:02:55.4]} 12. Re1 {[%clk 0:02:31.6]} 12...
Nc5 {[%clk 0:02:54.9]} 13. Nf1 {[%clk 0:02:08.3]} 13... dxe4 {[%clk 0:02:46.1]}
14. dxe4 {[%clk 0:02:01.3]} 14... Ne6 {[%clk 0:02:37.9]} 15. c3 {[%clk
0:01:45.3]} 15... b6 {[%clk 0:02:38]} 16. Nf5 {[%clk 0:01:44.2]} 16... Ba6
{[%clk 0:02:35.4]} 17. Qf3 {[%clk 0:01:43.2]} 17... Qd3 {[%clk 0:02:24.8]} 18.
Be3 {[%clk 0:01:36.4]} 18... Nc5 {[%clk 0:02:20]} 19. Nd2 {[%clk 0:01:29.2]}
19... Re6 {[%clk 0:02:03.3]} 20. g4 {[%clk 0:01:16.4]} 20... g6 {[%clk
0:01:52.7]} 21. Ng3 {[%clk 0:01:15.4]} 21... Qc2 {[%clk 0:01:44.1]} 22. h4
{[%clk 0:01:10.8]} 22... Qxb2 {[%clk 0:01:39.2]} 23. g5 {[%clk 0:01:11.6]} 23...
Nfd7 {[%clk 0:01:37.8]} 24. Bh3 {[%clk 0:01:12.3]} 24... Qxc3 {[%clk 0:01:36.5]}
25. Bxe6 {[%clk 0:01:11.9]} 25... Nxe6 {[%clk 0:01:37]} 26. h5 {[%clk
0:01:02.7]} 26... c5 {[%clk 0:01:33.4]} 27. hxg6 {[%clk 0:00:59.8]} 27... hxg6
{[%clk 0:01:27]} 28. Kg2 {[%clk 0:00:57.2]} 28... Nf4+ {[%clk 0:00:42.3]} 29.
Bxf4 {[%clk 0:00:57.3]} 29... Qxf3+ {[%clk 0:00:44.2]} 30. Kxf3 {[%clk
0:00:59.2]} 30... exf4 {[%clk 0:00:45.6]} 31. Kxf4 {[%clk 0:01:01.1]} 31... Bd6+
{[%clk 0:00:46.9]} 32. Kf3 {[%clk 0:00:58.7]} 32... Ne5+ {[%clk 0:00:47.7]} 33.
Kg2 {[%clk 0:01:00.1]} 33... Nd3 {[%clk 0:00:48.7]} 34. Reb1 {[%clk 0:00:56.7]}
34... b5 {[%clk 0:00:46.4]} 35. Ne2 {[%clk 0:00:56.5]} 35... Be5 {[%clk
0:00:41.2]} 36. Ra2 {[%clk 0:00:56.2]} 36... Rd8 {[%clk 0:00:41]} 37. Nf3 {[%clk
0:00:53.8]} 37... Bg7 {[%clk 0:00:39.9]} 38. Rd2 {[%clk 0:00:51]} 38... c4
{[%clk 0:00:41]} 39. Kg3 {[%clk 0:00:48.5]} 39... Re8 {[%clk 0:00:39]} 40. Nf4
{[%clk 0:00:45]} 40... Nc5 {[%clk 0:00:24.8]} 41. Kg2 {[%clk 0:00:45.4]} 41...
Nxe4 {[%clk 0:00:23.5]} 42. Re2 {[%clk 0:00:45.8]} 42... Kf8 {[%clk 0:00:20.8]}
43. Nd5 {[%clk 0:00:33.7]} 43... Nc3 {[%clk 0:00:07.3]} 44. Rxe8+ {[%clk
0:00:25.8]} 44... Kxe8 {[%clk 0:00:09.2]} 45. Re1+ {[%clk 0:00:24.2]} 45... Kd7
{[%clk 0:00:09.2]} 46. Re7+ {[%clk 0:00:17.1]} 46... Kd6 {[%clk 0:00:08.1]} 47.
Rxf7 {[%clk 0:00:18.1]} 47... Kxd5 {[%clk 0:00:08.4]} 48. Rxg7 {[%clk
0:00:18.9]} 48... b4 {[%clk 0:00:09.8]} 49. axb4 {[%clk 0:00:16.8]} 49... a3
{[%clk 0:00:09.8]} 50. Rxg6 {[%clk 0:00:17]} 50... Bb7 {[%clk 0:00:10.4]} 51.
Rh6 {[%clk 0:00:15.3]} 51... a2 {[%clk 0:00:10.4]} 52. Rh1 {[%clk 0:00:15.4]}
52... Nb1 {[%clk 0:00:11.7]} 53. Rd1+ {[%clk 0:00:16.9]} 53... Ke6 {[%clk
0:00:10.9]} 54. Re1+ {[%clk 0:00:13.5]} 54... Kf5 {[%clk 0:00:11.6]} 55. Re5+
{[%clk 0:00:14.4]} 55... Kg4 {[%clk 0:00:09.6]} 56. Ra5 {[%clk 0:00:13.5]} 56...
Bxf3+ {[%clk 0:00:09.4]} 57. Kh2 {[%clk 0:00:14.7]} 57... Nc3 {[%clk 0:00:07.9]}
58. g6 {[%clk 0:00:14.9]} 58... Bd5 {[%clk 0:00:04.3]} 59. g7 {[%clk 0:00:11.6]}
59... Bg8 {[%clk 0:00:04.6]} 60. b5 {[%clk 0:00:12.3]} 60... Nxb5 {[%clk
0:00:04.7]} 61. Rxa2 {[%clk 0:00:13.4]} 61... c3 {[%clk 0:00:06.5]} 62. Ra4+
{[%clk 0:00:13.9]} 62... Kf3 {[%clk 0:00:06.3]} 63. Ra5 {[%clk 0:00:13.6]} 63...
c2 {[%clk 0:00:06.4]} 64. Ra1 {[%clk 0:00:14]} 64... Kxf2 {[%clk 0:00:07.2]} 65.
Rc1 {[%clk 0:00:15]} 65... Nd4 {[%clk 0:00:08.5]} 66. Kh3 {[%clk 0:00:15.5]}
66... Ke2 {[%clk 0:00:08]} 67. Kg4 {[%clk 0:00:16.2]} 67... Kd2 {[%clk
0:00:09.1]} 68. Rxc2+ {[%clk 0:00:17.3]} 68... Kxc2 {[%clk 0:00:11]} 69. Kg5
{[%clk 0:00:18.9]} 69... Ne6+ {[%clk 0:00:12.1]} 70. Kf6 {[%clk 0:00:20.8]}
70... Kd3 {[%clk 0:00:13.3]} 71. Ke7 {[%clk 0:00:22.1]} 71... Ke4 {[%clk
0:00:14.7]} 72. Kf6 {[%clk 0:00:21.8]} 72... Kd5 {[%clk 0:00:15.5]} 73. Ke7
{[%clk 0:00:21.9]} 73... Ke5 {[%clk 0:00:16.7]} 74. Ke8 {[%clk 0:00:22.9]} 74...
Kf6 {[%clk 0:00:17.6]} 75. Kd7 {[%clk 0:00:24.3]} 75... Nxg7 {[%clk 0:00:18]}
76. Kd6 {[%clk 0:00:25.3]} 76... Be6 {[%clk 0:00:19.9]} 77. Kc5 {[%clk
0:00:26.1]} 77... Ke5 {[%clk 0:00:21.8]} 78. Kc6 {[%clk 0:00:27.4]} 78... Bd5+
{[%clk 0:00:20.9]} 79. Kd7 {[%clk 0:00:28.3]} 79... Nf5 {[%clk 0:00:20.9]} 80.
Kc7 {[%clk 0:00:29.3]} 80... Nd6 {[%clk 0:00:15.5]} 81. Kd7 {[%clk 0:00:29.5]}
81... Nb7 {[%clk 0:00:15.6]} 82. Ke7 {[%clk 0:00:30]} 82... Nc5 {[%clk
0:00:16.6]} 83. Kf8 {[%clk 0:00:28.8]} 83... Kf6 {[%clk 0:00:16.2]} 84. Ke8
{[%clk 0:00:30]} 84... Bf3 {[%clk 0:00:09.7]} 85. Kd8 {[%clk 0:00:30.4]} 85...
Ke6 {[%clk 0:00:09.9]} 86. Kc7 {[%clk 0:00:31.4]} 86... Nd7 {[%clk 0:00:10.9]}
87. Kd8 {[%clk 0:00:30.4]} 87... Kd6 {[%clk 0:00:11.9]} 88. Ke8 {[%clk
0:00:31.2]} 88... Bd5 {[%clk 0:00:13.5]} 89. Kd8 {[%clk 0:00:32.1]} 89... Bf7
{[%clk 0:00:14.8]} 90. Kc8 {[%clk 0:00:32.9]} 90... Nc5 {[%clk 0:00:16.7]} 91.
Kd8 {[%clk 0:00:31.3]} 91... Nb7+ {[%clk 0:00:17.7]} 92. Kc8 {[%clk 0:00:32.3]}
92... Kc6 {[%clk 0:00:19.6]} 93. Kb8 {[%clk 0:00:32.8]} 93... Kb6 {[%clk
0:00:20.6]} 94. Kc8 {[%clk 0:00:33.8]} 94... Be6+ {[%clk 0:00:22]} 95. Kb8
{[%clk 0:00:34.6]} 95... Nc5 {[%clk 0:00:23.6]} 96. Ka8 {[%clk 0:00:35.3]} 96...
Bf5 {[%clk 0:00:24.7]} 97. Kb8 {[%clk 0:00:35.9]} 97... Na6+ {[%clk 0:00:26.6]}
98. Ka8 {[%clk 0:00:37.1]} 98... Be4# {[%clk 0:00:28.5]} 0-1